Cogmind - Beta 11.1 @@@ ROGUE MODE // 2022.12.20 @ 21:22:14 Player: Richard Blunt Result: Destroyed by as-82279 with Assembled Rifle Performance ------------- Evolutions (0) 0 Regions Visited (2) 400 Robots Destroyed (23) 115 Value Destroyed (396) 396 Prototype IDs (0) 0 Alien Tech Used (0) 0 Bonus (0) 0 TOTAL SCORE: 911 Bonus ------- None Cogmind --------- Core Integrity 0/250 Matter 199/300 Energy 250/250 System Corruption 1% Temperature Cool (0) Movement Rolling (140) Ox4 Location -10/Mines Parts ------- > --- POWER (1) -------- Ion Engine > --- PROPULSION (2) --- Light Treads Wheel > --- UTILITY (2) ------ High-capacity Storage Unit Core Shielding > --- WEAPON (2) ------- Assault Rifle > --- INVENTORY (20) --- Light Ion Engine Light Treads Light Treads Wheel Wheel Compact Wheel Huge Storage Unit Medium Matter Pod (50) Visual Processing Unit Sensor Array Signal Interpreter Seismic Detector Targeting Computer Light Armor Plating Light Armor Plating Mining Laser Peak State ------------ > --- POWER ------------ Light Ion Engine > --- PROPULSION ------- Light Treads Compact Wheel > --- UTILITY ---------- High-capacity Storage Unit Seismic Detector > --- WEAPON ----------- Assault Rifle Assault Rifle > --- INVENTORY -------- Ion Engine Light Treads Light Treads Compact Wheel Compact Wheel Targeting Computer Light Armor Plating Light Armor Plating Assault Rifle Mining Laser [Rating: 8] Favorites ----------- Power Ion Engine Engine Ion Engine Propulsion Light Treads Treads Light Treads Wheel Compact Wheel Utility High-capacity Storage Unit Device Seismic Detector Storage High-capacity Storage Unit Protection Core Shielding Weapon Assault Rifle Energy Gun Small Laser Ballistic Gun Assault Rifle Ballistic Cannon Light Cannon Special Weapon Mining Laser Build | -11 -10 -10 ------- Run | Scr Mat Min Slots Evolved . | . . . Power . | . . . Propulsion . | . . . Utility . | . . . Weapon . | . . . Parts Attached 29 | 8 15 6 Power 3 | 1 2 . Engine 3 | 1 2 . Core . | . . . Reactor . | . . . Propulsion 8 | 2 3 3 Treads 4 | 1 2 1 Leg . | . . . Wheel 4 | 1 1 2 Hover . | . . . Flight . | . . . Utility 6 | 3 3 . Device 2 | 2 . . Storage 2 | 1 1 . Processor . | . . . Hackware . | . . . Protection 2 | . 2 . Artifact . | . . . Weapon 12 | 2 7 3 Energy Gun 1 | 1 . . Energy Cannon . | . . . Ballistic Gun 8 | 1 6 1 Ballistic Cannon 1 | . . 1 Launcher . | . . . Special Weapon 2 | . 1 1 Impact Weapon . | . . . Slashing Weapon . | . . . Piercing Weapon . | . . . Special Melee Weapon . | . . . Unidentified Prototypes . | . . . Parts Lost 10 | . 7 3 Power 2 | . 2 . Propulsion 3 | . 2 1 Utility . | . . . Weapon 5 | . 3 2 Highest Loss Streak 3 | . 3 2 To Critical Strikes . | . . . Average Slot Usage (%) 99 | . 99 99 Engine 13 | . 13 14 Treads 14 | . 14 17 Wheel 13 | . 14 10 Device 3 | . 4 . Storage 14 | . 14 14 Protection 10 | . 9 14 Ballistic Gun 25 | . 27 18 Ballistic Cannon 1 | . . 8 Naked Turns . | . . . Heaviest Build 52 | 12 52 51 Greatest Support 40 | 16 16 40 Greatest Overweight (x) 5 | 3 3 5 Average Overweight (x) 2 | . 2 3 Largest Inventory Capacity 20 | 8 20 20 Average Capacity 17 | 7 17 20 Most Carried 17 | 7 16 17 Average Carried 11 | 3 10 14 Final Capacity 20 | 8 20 20 Final Carried 16 | 7 14 16 Class Distribution -------------------- 100% | Mutant Dominant Class ---------------- Mutant | -10/Materials Mutant | -10/Mines Resources | -11 -10 -10 ----------- Run | Scr Mat Min Matter Collected 868 | 285 464 119 Remotely 135 | 135 . . Salvage Created 681 | 122 543 16 Parts 47 | 7 40 . Haulers Intercepted 2 | . 2 . Recyclers Shooed . | . . . Parts Field Recycled . | . . . Retrieved Matter . | . . . Parts Self-Destructed . | . . . Prevented . | . . . Kills | -11 -10 -10 ------- Run | Scr Mat Min Combat Hostiles Destroyed 15 | . 13 2 Guns 14 | . 13 1 Cannons 1 | . . 1 Classes Destroyed 7 | 2 4 1 Tunneler 3 | 3 . . Hauler 2 | . 2 . Recycler 2 | 1 1 . Watcher 3 | . 3 . Swarmer 6 | . 6 . Grunt 7 | . 7 . Assembled 2 | . . 2 Best Kill Streak 4 | 4 4 2 Combat Bots Only 4 | . 4 2 Max Kills in Single Turn 1 | 1 1 1 Gunslinging . | . . . Exploded . | . . . Melee . | . . . Uniques/NPCs Destroyed . | . . . Combat | -11 -10 -10 -------- Run | Scr Mat Min Damage Taken 1425 | . 876 549 Core 259 | . 128 131 Absorbed by Shields . | . . . Redirected to Shielding 40 | . 13 27 Core Remaining (%) 100 | 100 . . Volleys Fired 84 | 5 61 18 Largest 2 | 2 2 2 Hottest 100 | 60 100 55 Shots Fired 165 | 10 119 36 Gun 145 | 10 116 19 Cannon 17 | . . 17 Launcher . | . . . Special 3 | . 3 . Kinetic 157 | 5 116 36 Thermal 8 | 5 3 . Explosive . | . . . Electromagnetic . | . . . Robot Hit Streak 7 | 7 7 2 Robot Miss Streak 4 | 1 4 3 Penetration Max . | . . . Secondary Targets 1 | . 1 . Max Gunslinging Chain 1 | . 1 . Shots Hit Robots 94 | 8 69 17 Core Hits 35 | 4 26 5 Critical Kills . | . . . Critical Parts Destroyed 1 | . 1 . Critical Strikes 1 | . 1 . Destroy 1 | . 1 . Melee Attacks . | . . . Impact . | . . . Slashing . | . . . Piercing . | . . . Sneak Attacks . | . . . Combat Hostiles . | . . . Follow-up Attacks . | . . . Damage Inflicted 1236 | 100 914 222 Guns 1097 | 100 914 83 Cannons 139 | . . 139 Explosions . | . . . Melee . | . . . Ramming . | . . . Kinetic 1203 | 67 914 222 Thermal 33 | 33 . . Explosive . | . . . Electromagnetic . | . . . Impact . | . . . Slashing . | . . . Piercing . | . . . Highest Corruption 1 | . 1 1 Average Corruption 1 | . 1 1 Corruption Purged . | . . . Corruption Blocked . | . . . Effects 6 | . 5 1 Message Errors 1 | . 1 . Matter Fused 1 | . 1 . Heat Flow Errors 2 | . 2 . Energy Discharges 1 | . 1 . Data Loss (minor) 1 | . . 1 Overload Shots . | . . . Overflow Damage . | . . . Projectiles . | . . . Explosions . | . . . Melee . | . . . Knockbacks 5 | . . 5 Impact . | . . . Kinetic 5 | . . 5 Secondary . | . . . Self-Inflicted Damage . | . . . Shots . | . . . Rammed . | . . . Targets Rammed . | . . . Kicked . | . . . Crushed . | . . . Highest Temperature 233 | . 233 . Average Temperature 62 | . 62 . Received Heat Transfer 339 | . 339 . Siege Activations . | . . . Robots Corrupted . | . . . Combat Hostiles . | . . . Parts Fried . | . . . Impact Corruptions . | . . . Robots Melted . | . . . Combat Hostiles . | . . . Parts Melted . | . . . Heat Transferred 75 | 75 . . Parts Sabotaged . | . . . Parts Stolen . | . . . Parts Stripped . | . . . Power Chain Reactions . | . . . Missiles Intercepted . | . . . Alert | -11 -10 -10 ------- Run | Scr Mat Min Peak Influence 218 | 20 218 . Initial 13 | . 13 . Average 95 | 8 123 . Maximum Alert Level 1 | . 1 . Low Security (%) 93 | 100 91 100 Level 1 6 | . 8 . Level 2 . | . . . Level 3 . | . . . Level 4 . | . . . Level 5 . | . . . High Security . | . . . Max Security . | . . . Squads Dispatched 4 | . 4 . Investigation 1 | . 1 . Extermination . | . . . Reinforcement 3 | . 3 . Assault . | . . . Garrison . | . . . Intercept . | . . . Searches Triggered . | . . . Construction Impeded . | . . . Haulers Reinforced . | . . . Active Scanning Responses . | . . . Cargo Convoy Interrupts . | . . . Stealth | -11 -10 -10 --------- Run | Scr Mat Min Distress Signals 5 | . 3 2 Communications Jammed . | . . . Distress Signals . | . . . Times Spotted 47 | . 24 23 Peak Tracking Total 19 | . 6 19 Tactical Retreats 3 | . . 3 Traps | -11 -10 -10 ------- Run | Scr Mat Min Traps Triggered 3 | . 3 . Indirectly . | . . . Trap Hack Attempts . | . . . Triggered . | . . . Disarmed . | . . . Reprogrammed 4 | . 4 . Reused . | . . . Traps Extracted . | . . . Installed . | . . . Triggered . | . . . Machines | -11 -10 -10 ---------- Run | Scr Mat Min Machines Disabled . | . . . Max in Single Turn . | . . . Machines Sabotaged . | . . . Garrisons Compromised . | . . . Overloaded Fab Kills . | . . . Hacking | -11 -10 -10 --------- Run | Scr Mat Min Machines Accessed 8 | . 8 . Terminals 6 | . 6 . Fabricators . | . . . Repair Stations 1 | . 1 . Recycling Units 1 | . 1 . Scanalyzers . | . . . Garrison Access . | . . . Total Hacks 24 | . 24 . Successful 15 | . 15 . Failed 9 | . 9 . Catastrophic . | . . . Database Lockouts . | . . . Manual 14 | . 14 . Terminals 21 | . 21 . Fabricators . | . . . Repair Stations 2 | . 2 . Recycling Units 1 | . 1 . Scanalyzers . | . . . Garrison Access . | . . . Terminal Hacks 11 | . 11 . Robot Analysis 4 | . 4 . Locate Traps 2 | . 2 . Reprogram Traps 1 | . 1 . Maintenance Status 1 | . 1 . Zone Layout 3 | . 3 . Fabricator Hacks . | . . . Repair Station Hacks 1 | . 1 . Scan Component 1 | . 1 . Recycling Unit Hacks . | . . . Scanalyzer . | . . . Garrison Access Hacks . | . . . Unauthorized Hacks 3 | . 3 . Terminals 2 | . 2 . Botnet 2 | . 2 . Fabricators . | . . . Repair Stations . | . . . Recycling Units 1 | . 1 . Tunnel 1 | . 1 . Scanalyzers . | . . . Garrison Access . | . . . Data Cores Recovered . | . . . Used . | . . . Hacking Detections 7 | . 7 . Full Trace Events . | . . . Feedback Events . | . . . Feedback Blocked . | . . . Robot Schematics Acquired . | . . . Robots Built . | . . . Authchips . | . . . Time . | . . . Total Robot Build Rating . | . . . Part Schematics Acquired . | . . . Parts Built . | . . . Authchips . | . . . Time . | . . . Total Part Build Rating . | . . . Parts Repaired . | . . . Time . | . . . Parts Recycled . | . . . Recycled Matter . | . . . Retrieved Matter . | . . . Retrieved Components . | . . . Parts Scanalyzed . | . . . Part Schematics Acquired . | . . . Parts Damaged . | . . . Bothacking | -11 -10 -10 ------------ Run | Scr Mat Min Used RIF Installer . | . . . Robots Hacked . | . . . Non-combat . | . . . Combat . | . . . Robot Hacks Applied . | . . . Relay Couplers Released . | . . . Fabnet Peak Effective % . | . . . Robots Rewired . | . . . Allies Hacked . | . . . Hacks Repelled . | . . . Allies | -11 -10 -10 -------- Run | Scr Mat Min Total Allies . | . . . Largest Group . | . . . Highest-Rated Group . | . . . Highest-Rated Ally . | . . . Total Orders . | . . . Ally Attacks . | . . . Total Damage . | . . . Kills . | . . . Allies Corrupted . | . . . Allies Melted . | . . . Intel | -11 -10 -10 ------- Run | Scr Mat Min Robot Analysis Total 4 | . 4 . Derelict Logs Recovered . | . . . Drone Launches . | . . . Drone Recoveries . | . . . Exploration | -11 -10 -10 ------------- Run | Scr Mat Min Turns Passed 1594 | 78 1229 287 Spaces Moved 900 | 42 741 117 Core 5 | 5 . . Treads 14 | . . 14 Legs . | . . . Wheels 881 | 37 741 103 Hover . | . . . Flight . | . . . Fastest Speed 50 | 50 100 145 Average Speed 132 | 104 130 158 Slowest Speed 240 | 200 145 240 Overloaded Moves . | . . . Propulsion Burnouts . | . . . Robots Hopped . | . . . Cave-ins Triggered . | . . . Exploration Rate (%) 37 | 3 97 13 Regions Visited 2 Branch Regions 1 Pre-discovered Areas 1 | . 1 . Known Exits Taken . | . . . Unknown Exits Taken 2 | 1 1 . Scrap Searched . | . . . Spaces Dug 3 | . 3 . Terrain Destroyed 3 | . 3 . Melee . | . . . Projectile 3 | . 3 . AOE . | . . . Terrain Rammed . | . . . Walls Destroyed . | . . . Machines Disabled . | . . . Actions | -11 -10 -10 --------- Run | Scr Mat Min Total 1124 | 61 882 181 Wait 84 | . 47 37 Move 898 | 41 740 117 Hop . | . . . Pick Up 24 | 7 14 3 Fast Attach 11 | 7 4 . Attach 8 | . 6 2 Detach 1 | . 1 . Swap 10 | 1 5 4 Drop 4 | . 4 . Fire 84 | 5 61 18 Melee . | . . . Ram . | . . . Kick . | . . . Crush . | . . . Escape Stasis . | . . . Rewire . | . . . Trap . | . . . Miscellaneous . | . . . Route ------- -11/Scrapyard -10/Materials (discovered 5 exits: [*Mat x3] / [*Min x2]) -10/Mines (discovered 1 exit: [*Mat]) History --------- Turn | Location | Event 22 | -11/Scrapyard | Discovered new exit (range 15) 79 | -11/Scrapyard | Entered Materials 126 | -10/Materials | Discovered new exit (range 8) 313 | -10/Materials | Build established: Mutant 317 | -10/Materials | Discovered new exit (range 11) 409 | -10/Materials | Discovered new exit (range 7) 787 | -10/Materials | Discovered new exit (range 9) 801 | -10/Materials | Lost 3 parts (1p2w) 1096 | -10/Materials | Discovered new exit (range 7) 1281 | -10/Materials | Core integrity fell below 50% 1308 | -10/Materials | Entered Mines 1322 | -10/Mines | Discovered new exit (range 11) 1392 | -10/Mines | Assembled infested the area 1430 | -10/Mines | Core integrity fell below 20% 1595 | -10/Mines | Destroyed by as-82279 with Assembled Rifle Last Messages --------------- 01563_ K-01 Serf collects debris. 01565_ Acquired Lgt. Ion Engine. 01566_ U-05 Engineer lays Concrete. 01567_ K-01 Serf collects debris. 01569_ The unstable cave ceiling collapses. 01569_ U-05 Engineer builds a Wall. 01571_ K-01 Serf collects debris. 01572_ U-05 Engineer lays Concrete. 01573_ U-05 Engineer builds a Wall. 01574_ K-01 Serf collects debris. 01577_ U-05 Engineer builds a Wall. 01579_ K-01 Serf destroyed. 01580_ as-82279 knocked back. 01582_ U-05 Engineer builds a Wall. 01586_ U-05 Engineer lays Concrete. 01587_ U-05 Engineer builds a Wall. 01589_ Lgt. Cannon destroyed. 01592_ U-05 Engineer builds a Wall. 01593_ Assault Rifle destroyed. 01594_ K-01 Serf collects debris. Map ----- +----------------------------------------------------+ | | | | | | | | | | | | | | | | | | | | | | | | | | | | | | | | | | | | | ?????????????????????????????????????????????????? | | ????????????????????????????#######??????????????? | | ???????????????????????????## # ########???#####?? | | ????????????????????????#### # ##### ### | | ???????????????????????## # ## | | ??????????????????????## # ### """ #### | | ????????????????????### #### "" #??# < | | ????? ##?????????# # @ u """ #??## | | ????? # # # #%#k### #???###### | | ????? #==% %# #????????## | | ????? ## ##a# # %#######?????????? | | ???????# ???????# %* ## ######??????????????? | | ??????????????????# ## # #???????????????????? | | ??????????????????# ## # #???????????????????? | | ??????????????????% # ##???????????????????? | | ???????????????? * ###?????????????????????? | | ???????????????#### % ????????????????????????? | | ??????????????????# =% #????????????????????????? | | ??????????????????# ????????????????????????? | | ?????????????????? ????????????????????????? | | ?????????????????# ????????????????????????? | | ?????????????????# ???????????????????????? | | ?????????????????# ???????????????????????? | | ?????????????????## ???????????????????????? | | ??????????????????## ???????????????????????? | | ???????????????????## #???????????????????????? | | ????????????????????? ##????????????????????????? | | ?????????????????????????????????????????????????? | | ?????????????????????????????????????????????????? | | ?????????????????????????????????????????????????? | | ?????????????????????????????????????????????????? | | ?????????????????????????????????????????????????? | +----------------------------------------------------+ Best States ------------- Heat Dissipation 25 Energy Generation 10 Energy Capacity 250 Matter Stores 300 Matter Capacity 300 Sight Range 16 Terrain Scan Density 10 Armor Coverage 150 Core Shielding 20 Evasion (%) 40 Recoil Reduction 2 Item Schematics ----------------- None Robot Schematics ------------------ None Fabricated ------------ Nothing Alien Tech Used ----------------- None Achievements -------------- None Challenges ------------ None Game ------ Seed RemoteTargetingShredder Manual? 0 Play Time 00:22:42 Cumulative 117.2 hours Start 2022.12.20 @ 21:01:11 End 2022.12.20 @ 21:22:14 Sessions 1 Manual Loads 0 Difficulty Rogue Special Mode None Game No. 37 Rogue 37 Adventurer 0 Explorer 0 Win Type - Total 1 Types 1/0/0/0/0/0/0/0/0 Lore% 45 Gallery% 51 Achievement% 44 Wizard Run 0 Options --------- ASCII 0 Keyboard 1 Movement Vi Keybinds 0 Fullscreen 1 Font 18/SmallcapsGlow Map View 76x50 Tactical HUD 1 Map Filters NONE Filters NONE Steam 1 RUN: 57db8653-851d-4f18-b00e-1fcdc87dfe44